bitfinex/quotes_BTCUSD_20251007
["timestamp","ask_amount","ask_price","bid_price","bid_amount"]
[1759853555280,0.00197207,121650.0,121640.0,1.66920812]
[1759853555514,0.00197207,121650.0,121640.0,1.39114992]
[1759853556487,0.00048627,121650.0,121640.0,1.39114992]
[1759853557290,0.30275235,121650.0,121640.0,0.51210033]
[1759853557522,0.37672846,121650.0,121640.0,0.51210033]
[1759853557707,0.06947627,121650.0,121640.0,0.95817992]
[1759853557995,0.04311627,121650.0,121640.0,0.95817992]
[1759853558223,0.00048627,121650.0,121640.0,0.95817992]
[1759853559390,0.00048627,121650.0,121640.0,1.20463192]
[1759853559630,0.00048627,121650.0,121640.0,1.65117872]
[1759853559851,0.00048627,121650.0,121640.0,1.81755572]
[1759853560302,0.00048627,121650.0,121640.0,1.17922572]
[1759853560522,0.00048627,121650.0,121640.0,1.84410572]
[1759853561825,0.00048627,121650.0,121640.0,1.17922572]
[1759853562092,0.00048627,121650.0,121640.0,1.84410572]
[1759853563179,0.00048627,121650.0,121640.0,1.17922572]
[1759853563385,0.00048627,121650.0,121640.0,1.84406572]
[1759853563589,0.00048627,121650.0,121640.0,1.73726172]
[1759853563828,0.00048627,121650.0,121640.0,0.80453672]
[1759853564015,0.00048627,121650.0,121640.0,1.60415472]
[1759853564451,0.00048627,121650.0,121640.0,1.63070472]
[1759853564878,0.00048627,121650.0,121640.0,0.96586472]
[1759853565082,0.00048627,121650.0,121640.0,0.93931472]
[1759853565303,0.00051292,121660.0,121640.0,0.93931472]
[1759853565304,0.00051292,121660.0,121650.0,0.16440608]
[1759853565476,0.00051292,121660.0,121650.0,0.24752814]
[1759853565689,0.23681548,121660.0,121650.0,0.14567284]
[1759853565902,0.07242292,121660.0,121650.0,0.54779892]
[1759853566348,0.23681548,121660.0,121650.0,0.54779892]
[1759853566671,0.23881548,121660.0,121650.0,0.54879892]
[1759853567170,0.21205548,121660.0,121650.0,0.54879892]
[1759853567404,0.23881548,121660.0,121650.0,0.54879892]
[1759853568311,0.07442292,121660.0,121650.0,0.54879892]
[1759853568542,0.16690548,121660.0,121650.0,0.54879892]
[1759853568781,0.00251292,121660.0,121650.0,0.54879892]
[1759853569021,0.23881548,121660.0,121650.0,0.72839078]
[1759853569213,0.04766292,121660.0,121650.0,0.97591892]
[1759853569467,0.23881548,121660.0,121650.0,0.97591892]
[1759853569672,0.04766292,121660.0,121650.0,0.97591892]
[1759853569905,0.21205548,121660.0,121650.0,0.97591892]
[1759853570849,0.30582548,121660.0,121650.0,0.76938284]
[1759853571076,0.33152548,121660.0,121650.0,0.02142078]
[1759853571302,0.38253548,121660.0,121650.0,0.34450078]
[1759853571769,0.38253548,121660.0,121650.0,0.25910078]
[1759853571982,0.38253548,121660.0,121650.0,0.34450078]
[1759853573068,0.38253548,121660.0,121650.0,0.02142078]
[1759853573272,0.43804887,121660.0,121650.0,0.34450078]
[1759853573684,0.43804887,121660.0,121650.0,0.02142078]
[1759853573880,0.43804887,121660.0,121650.0,0.34450078]
[1759853575636,0.38253548,121660.0,121650.0,0.34450078]
[1759853576921,0.38253548,121660.0,121650.0,0.02142078]
[1759853577153,0.38253548,121660.0,121650.0,0.31278078]
[1759853577370,0.80565754,121660.0,121650.0,0.02142078]
[1759853577538,0.80565754,121660.0,121650.0,0.34450078]
[1759853577748,0.88565434,121660.0,121650.0,0.34450078]
[1759853580049,0.80565754,121660.0,121650.0,0.34450078]
[1759853580257,0.72253548,121660.0,121650.0,0.34450078]
[1759853580473,0.07442292,121660.0,121650.0,0.55022686]
[1759853580696,0.16690548,121660.0,121650.0,0.69640892]
[1759853580882,0.32620548,121660.0,121650.0,0.42762284]
[1759853581116,0.32620548,121660.0,121650.0,0.59202892]
[1759853581550,0.32620548,121660.0,121650.0,0.34450078]
[1759853581765,0.42779587,121660.0,121650.0,0.02142078]
[1759853582006,0.51091793,121660.0,121650.0,0.02142078]
[1759853582213,1.79206157,121660.0,121650.0,0.10686078]
[1759853582420,1.79206157,121660.0,121650.0,0.15518078]
[1759853582844,1.79206157,121660.0,121650.0,0.02142078]
[1759853583644,1.79753498,121660.0,121650.0,0.06690078]
[1759853583891,1.79853498,121660.0,121650.0,0.06790078]
[1759853584308,1.79753498,121660.0,121650.0,0.06690078]
[1759853584515,1.80053498,121660.0,121650.0,0.06790078]
[1759853586100,1.80053498,121660.0,121650.0,1e-08]
[1759853586768,0.16443311,121630.0,121620.0,0.08544]
[1759853586973,0.16443311,121630.0,121620.0,0.16068]
[1759853586974,0.49145164,121630.0,121620.0,0.16068]
[1759853587896,0.49045164,121630.0,121620.0,0.16068]
[1759853588138,0.49050183,121630.0,121620.0,0.16068]
[1759853588908,0.16444663,121620.0,121610.0,0.00752092]
[1759853589300,0.24333663,121620.0,121610.0,0.32304]
[1759853589512,0.31130663,121620.0,121610.0,0.32304]
[1759853589789,0.42932214,121620.0,121610.0,0.32304]
[1759853589997,0.37445663,121620.0,121610.0,0.32304]
[1759853590739,0.37645663,121620.0,121610.0,0.32404]
[1759853591537,0.37645663,121620.0,121610.0,0.33163161]
[1759853592830,0.37645663,121620.0,121610.0,0.32404]
[1759853593162,0.37645663,121620.0,121610.0,0.32557947]
[1759853593401,0.44205148,121620.0,121610.0,0.32557947]
[1759853593610,0.44205148,121620.0,121610.0,0.33303959]
[1759853594021,0.44205148,121620.0,121610.0,0.00253947]
[1759853594224,0.44205148,121620.0,121610.0,0.32557947]
[1759853594455,0.37645663,121620.0,121610.0,0.32557947]
[1759853595156,0.37645663,121620.0,121610.0,0.33300541]
[1759853597935,0.37645663,121620.0,121610.0,0.00996541]
[1759853598146,0.37645663,121620.0,121610.0,0.33300541]
[1759853600137,0.23341663,121620.0,121610.0,0.37432541]
[1759853600310,0.29756663,121620.0,121610.0,0.33300541]
[1759853600508,0.37085162,121620.0,121610.0,0.33300541]
[1759853601147,0.34367162,121620.0,121610.0,0.49746556]
[1759853601365,0.27952162,121620.0,121610.0,0.53878556]
[1759853601562,0.27952162,121620.0,121610.0,0.33300541]
[1759853601758,0.34367162,121620.0,121610.0,0.33300541]
[1759853602179,0.37085162,121620.0,121610.0,0.33300541]
[1759853602440,0.04323,121620.0,121610.0,0.62190762]
[1759853602611,0.002,121620.0,121610.0,0.62190762]
[1759853602990,0.20767663,121620.0,121610.0,0.62190762]
[1759853603350,0.23441663,121620.0,121610.0,0.92242762]
[1759853603547,0.23441663,121620.0,121610.0,0.96374762]
[1759853604467,0.23441663,121620.0,121610.0,0.67484541]
[1759853604468,0.37205168,121620.0,121610.0,0.67484541]
[1759853604675,0.37205168,121620.0,121610.0,0.00996541]
[1759853604881,0.37205168,121620.0,121610.0,0.33296541]
[1759853606023,0.37205168,121620.0,121610.0,0.00996541]
[1759853606273,0.37205168,121620.0,121610.0,0.33292541]
[1759853607454,0.37205168,121620.0,121610.0,0.00996541]
[1759853607672,0.39784168,121620.0,121610.0,0.00996541]
[1759853607879,0.39784168,121620.0,121610.0,0.33292541]
[1759853608279,0.29856663,121620.0,121610.0,0.33292541]
[1759853608968,0.20767663,121620.0,121610.0,0.37424541]
[1759853609179,0.16644663,121620.0,121610.0,0.62182762]
[1759853609386,0.16644663,121620.0,121610.0,0.68275762]
[1759853609594,0.002,121620.0,121610.0,0.70870762]
[1759853609778,0.002,121620.0,121610.0,0.78870442]
[1759853609997,0.002,121620.0,121610.0,0.81418442]
[1759853610433,0.002,121620.0,121610.0,0.73418762]
[1759853611606,0.002,121620.0,121610.0,0.70870762]
[1759853612185,0.002,121620.0,121610.0,0.73418762]
[1759853612386,0.004,121620.0,121610.0,0.76818762]
[1759853613029,0.004,121620.0,121610.0,2.43833262]
[1759853613233,0.004,121620.0,121610.0,1.94291542]
[1759853614081,0.004,121620.0,121610.0,1.95240542]
[1759853614511,0.002,121620.0,121610.0,1.95140542]
[1759853614727,5.019e-05,121630.0,121620.0,0.16444663]
[1759853614967,5.019e-05,121630.0,121620.0,1.38588669]
[1759853615180,5.019e-05,121630.0,121620.0,1.00269449]
[1759853615412,5.019e-05,121630.0,121620.0,1.58197449]
[1759853615627,5.019e-05,121630.0,121620.0,1.55739149]
[1759853616742,0.00105019,121630.0,121620.0,1.55839149]
[1759853617780,0.00105019,121630.0,121620.0,1.49701849]
[1759853617941,0.00105019,121630.0,121620.0,1.52168571]
[1759853620032,0.00105019,121630.0,121620.0,1.52160571]
[1759853620282,0.00105019,121630.0,121620.0,0.50695271]
[1759853620456,0.00105019,121630.0,121620.0,1.03368492]
[1759853620657,0.00105019,121630.0,121620.0,1.29555492]
[1759853620858,0.00105019,121630.0,121620.0,1.35558492]
[1759853621276,0.00105019,121630.0,121620.0,1.38108492]
[1759853622718,0.00105019,121630.0,121620.0,1.46108172]
[1759853622888,0.00105019,121630.0,121620.0,2.24051472]
[1759853623095,0.00105019,121630.0,121620.0,1.65399872]
[1759853623483,0.00105019,121630.0,121620.0,1.68020872]
[1759853626275,0.00105019,121630.0,121620.0,1.65399872]
[1759853626958,0.00105019,121630.0,121620.0,1.38108492]
[1759853628795,0.00105019,121630.0,121620.0,0.63095492]
[1759853629001,0.2335833,121630.0,121620.0,1.29547492]
[1759853629416,0.04375019,121630.0,121620.0,1.29547492]
[1759853629592,0.04375019,121630.0,121620.0,1.38100492]
[1759853629593,0.00105019,121630.0,121620.0,1.38100492]
[1759853629793,0.00105019,121630.0,121620.0,1.46100172]
[1759853630343,0.00105019,121630.0,121620.0,1.48721172]
[1759853631111,0.00105019,121630.0,121620.0,4.05424072]
[1759853631255,0.00105019,121630.0,121620.0,4.07890673]
[1759853632419,0.00105019,121630.0,121620.0,3.99348173]
[1759853632881,0.00105019,121630.0,121620.0,2.04688973]
[1759853633062,0.00105019,121630.0,121620.0,2.05520973]
[1759853633638,0.00105019,121630.0,121620.0,2.39688973]
[1759853634454,0.00105019,121630.0,121620.0,2.42704163]
[1759853635285,5.019e-05,121630.0,121620.0,2.42604163]
[1759853635490,0.00105019,121630.0,121620.0,2.42904163]
[1759853637797,0.00085824,121650.0,121640.0,0.50441959]
[1759853637974,0.00085824,121650.0,121640.0,2.51811809]
[1759853638180,0.00085824,121650.0,121640.0,2.55961809]
[1759853638381,0.00085824,121650.0,121640.0,2.69469227]
[1759853638833,0.22977158,121680.0,121660.0,0.16438075]
[1759853639066,0.28068985,121680.0,121670.0,0.36414]
[1759853639702,0.21532236,121680.0,121670.0,0.36414]
[1759853640663,0.21532236,121680.0,121670.0,0.32264]
[1759853640885,0.16439986,121660.0,121650.0,0.34176]
[1759853641092,0.20707986,121660.0,121650.0,0.74748206]
[1759853641301,0.26937986,121660.0,121650.0,0.74748206]
[1759853641524,0.26837986,121660.0,121650.0,0.32028206]
[1759853641730,0.26837986,121660.0,121650.0,0.74740206]
[1759853641950,0.20607986,121660.0,121650.0,0.08312206]
[1759853642151,0.20607986,121660.0,121650.0,0.14538405]
[1759853642362,0.20707986,121660.0,121650.0,0.80966405]
[1759853644463,1.56597923,121650.0,121640.0,0.09713828]
[1759853644698,1.56597923,121650.0,121610.0,0.34914594]
[1759853644699,0.16444663,121620.0,121610.0,0.34914594]
[1759853644931,0.16344663,121620.0,121610.0,0.43504756]
[1759853645156,0.26842663,121620.0,121610.0,0.43504756]
[1759853645376,0.29405663,121620.0,121610.0,0.43504756]
[1759853645596,0.34464663,121620.0,121610.0,0.00792756]
[1759853645781,0.36999663,121620.0,121610.0,0.33048756]
[1759853646271,0.36999663,121620.0,121610.0,0.32306162]
[1759853646697,0.4266322,121620.0,121610.0,0.32306162]
[1759853646885,0.36999663,121620.0,121610.0,0.32306162]
[1759853647505,0.36999663,121620.0,121610.0,1e-08]
[1759853647690,1.14602298,121620.0,121610.0,0.32356001]
[1759853648326,1.14402298,121620.0,121610.0,0.32256001]
[1759853648510,1.14402298,121620.0,121610.0,1e-08]
[1759853648811,1.22801978,121620.0,121610.0,0.32356001]
[1759853649264,0.53311549,121620.0,121610.0,0.32256001]
[1759853649501,0.16347368,121600.0,121590.0,0.05]
[1759853649732,0.85437797,121600.0,121590.0,0.13544]
[1759853650008,1.11856354,121600.0,121590.0,0.05]
[1759853650259,0.42765925,121600.0,121590.0,0.13544]
[1759853650508,1.11856354,121600.0,121590.0,0.13800622]
[1759853650761,1.11856354,121600.0,121590.0,0.05256622]
[1759853650981,1.11856354,121600.0,121590.0,0.28804622]
[1759853651422,1.11756354,121600.0,121590.0,0.05256622]
[1759853651600,0.1645278,121560.0,121550.0,0.06536749]
[1759853651809,0.15117105,121560.0,121550.0,0.63468955]
[1759853652008,0.15017105,121560.0,121550.0,0.67666955]
[1759853652181,0.15017105,121560.0,121550.0,0.61883952]
[1759853652908,0.15017105,121560.0,121550.0,0.62083952]
[1759853653775,0.19285105,121560.0,121550.0,0.13463952]
[1759853653959,0.19285105,121560.0,121550.0,0.51993952]
[1759853654170,0.25615105,121560.0,121550.0,0.75909952]
[1759853654375,0.25615105,121560.0,121550.0,0.09465952]
[1759853654577,0.19385105,121560.0,121550.0,0.80107952]
[1759853654943,0.25515105,121560.0,121550.0,0.75509952]
[1759853655152,0.15017105,121560.0,121550.0,0.13263952]
[1759853655358,0.15117105,121560.0,121550.0,0.79811952]
[1759853655803,0.15017105,121560.0,121550.0,0.79711952]
[1759853656001,0.15017105,121560.0,121550.0,0.87343464]
[1759853656173,0.15017105,121560.0,121550.0,0.89754464]
[1759853656374,0.15017105,121560.0,121550.0,0.87343464]
[1759853656910,0.15017105,121560.0,121550.0,0.81473464]
[1759853657131,0.15017105,121560.0,121550.0,0.79711952]
[1759853657323,0.15017105,121560.0,121550.0,0.7991736]
[1759853657555,0.21848105,121560.0,121550.0,0.1346936]
[1759853657737,0.21848105,121560.0,121550.0,0.8002536]
[1759853657738,0.19485105,121560.0,121550.0,0.8002536]
[1759853658106,0.19485105,121560.0,121550.0,0.80030379]
[1759853658338,0.15217105,121560.0,121550.0,0.80030379]
[1759853658845,0.15217105,121560.0,121550.0,0.90793379]
[1759853659460,0.15217105,121560.0,121550.0,0.88311379]
[1759853659762,0.15217105,121560.0,121550.0,0.85900379]
[1759853659980,0.15217105,121560.0,121550.0,0.43160379]
[1759853660114,0.15217105,121560.0,121550.0,0.85900379]
[1759853660336,0.19485105,121560.0,121550.0,0.80030379]
[1759853661129,0.23958177,121560.0,121550.0,0.09376379]
[1759853661337,0.35328177,121560.0,121550.0,0.01064173]
[1759853661556,1.06900606,121560.0,121550.0,0.20612173]
[1759853661764,1.06900606,121560.0,121550.0,0.33328173]
[1759853661969,1.06900606,121560.0,121550.0,0.24780173]
[1759853662188,1.06900606,121560.0,121550.0,0.33328173]
[1759853662412,1.09535606,121560.0,121550.0,0.00310427]
[1759853662622,1.09535606,121560.0,121550.0,0.09650427]
[1759853663526,0.35972105,121560.0,121550.0,0.09650427]
[1759853663739,1.05062534,121560.0,121550.0,0.09650427]
[1759853664574,0.16455487,121540.0,121530.0,0.0004]
[1759853664812,0.16455487,121540.0,121530.0,0.08603089]
[1759853665196,0.29516487,121540.0,121530.0,0.00809032]
[1759853665479,1.08263099,121540.0,121530.0,0.09357032]
[1759853665709,0.3917267,121540.0,121530.0,0.09357032]
[1759853665942,0.34675487,121540.0,121530.0,0.33273032]
[1759853666643,0.34675487,121540.0,121530.0,0.01009032]
[1759853666838,0.34675487,121540.0,121530.0,0.33273032]
[1759853667386,0.34575487,121540.0,121530.0,0.33073032]
[1759853667779,0.34675487,121540.0,121530.0,0.33273032]
[1759853667983,1.11765596,121540.0,121530.0,0.33273032]
[1759853668196,0.45210167,121540.0,121530.0,0.33073032]
[1759853668405,0.45210167,121540.0,121530.0,0.33173032]
[1759853668611,0.45410167,121540.0,121530.0,0.00909032]
[1759853668845,0.16458196,121520.0,121510.0,0.3424]
[1759853669061,1.05624145,121520.0,121510.0,0.67291946]
[1759853669429,0.36533716,121520.0,121510.0,0.67291946]
[1759853669888,0.21953091,121520.0,121510.0,0.67291946]
[1759853670109,0.27991091,121520.0,121510.0,0.67291946]
[1759853670335,0.22053091,121520.0,121510.0,0.71590946]
[1759853670574,0.22053091,121520.0,121510.0,0.67697454]
[1759853670799,0.19490091,121520.0,121510.0,0.71796454]
[1759853671229,0.21868091,121520.0,121510.0,0.71796454]
[1759853671432,0.19490091,121520.0,121510.0,0.71796454]
[1759853672266,0.21868091,121520.0,121510.0,0.67697454]
[1759853672480,0.26304506,121520.0,121510.0,0.67697454]
[1759853672926,0.26304506,121520.0,121510.0,0.71796454]
[1759853673346,0.15222091,121520.0,121510.0,0.71796454]
[1759853673803,0.21612091,121520.0,121510.0,0.71796454]
[1759853674005,0.19234091,121520.0,121510.0,0.71796454]
[1759853674208,0.21612091,121520.0,121510.0,0.71796454]
[1759853674578,0.19234091,121520.0,121510.0,0.71796454]
[1759853674788,0.21612091,121520.0,121510.0,0.71796454]
[1759853675650,0.19234091,121520.0,121510.0,0.71796454]
[1759853676047,0.21612091,121520.0,121510.0,0.67697454]
[1759853676259,0.27650091,121520.0,121510.0,0.67697454]
[1759853676481,0.21612091,121520.0,121510.0,0.67697454]
[1759853676958,0.27650091,121520.0,121510.0,0.67697454]
[1759853677144,0.39568906,121520.0,121510.0,0.01233454]
[1759853677364,0.39568906,121520.0,121510.0,0.33497454]
[1759853679185,0.39468906,121520.0,121510.0,0.33297454]
[1759853679659,0.39668906,121520.0,121510.0,0.33397454]
[1759853680551,0.27750091,121520.0,121510.0,0.33397454]
[1759853681204,0.32838091,121520.0,121510.0,0.33397454]
[1759853682370,0.35270091,121520.0,121510.0,0.00357927]
[1759853682583,0.35270091,121520.0,121510.0,0.32621927]
[1759853682915,0.40933648,121520.0,121510.0,0.00357927]
[1759853683139,0.40933648,121520.0,121510.0,0.32621927]
[1759853684065,0.35270091,121520.0,121510.0,0.32621927]
[1759853684488,0.32838091,121520.0,121510.0,0.32621927]
[1759853685039,0.30235091,121520.0,121510.0,0.32621927]
[1759853685265,0.21712091,121520.0,121510.0,0.36586927]
[1759853685770,0.27683091,121520.0,121510.0,0.32621927]
[1759853685969,0.34582206,121520.0,121510.0,0.32621927]
[1759853686707,0.30168091,121520.0,121510.0,0.32621927]
[1759853687503,0.15322091,121520.0,121510.0,0.44899133]
[1759853687728,0.19561091,121520.0,121510.0,0.44899133]
[1759853687942,0.22106091,121520.0,121510.0,0.44899133]
[1759853688151,0.28077091,121520.0,121510.0,0.40934133]
[1759853688605,0.37618606,121520.0,121510.0,0.32617927]
[1759853690262,0.22106091,121520.0,121510.0,0.36582927]
[1759853691768,0.30562091,121520.0,121510.0,0.32617927]
[1759853691914,0.28077091,121520.0,121510.0,0.32617927]
[1759853692126,0.002,121520.0,121510.0,0.66972683]
[1759853692327,0.002,121520.0,121510.0,1.97514583]
[1759853692538,0.002,121520.0,121510.0,1.73156263]
[1759853692750,0.002,121520.0,121510.0,1.09792714]
[1759853693972,0.002,121520.0,121510.0,1.12272714]
[1759853695928,0.16658196,121520.0,121510.0,1.10863984]
[1759853696144,0.16658196,121520.0,121510.0,1.24877534]
[1759853696360,0.002,121520.0,121510.0,1.07494034]
[1759853696578,0.002,121520.0,121510.0,1.20308334]
[1759853697002,0.002,121520.0,121510.0,0.79990334]
[1759853697212,0.002,121520.0,121510.0,1.33234014]
[1759853699576,0.002,121520.0,121510.0,1.22754334]
[1759853700248,0.002,121520.0,121510.0,1.01872034]
[1759853700464,0.23106196,121520.0,121510.0,0.63306683]
[1759853700675,0.002,121520.0,121510.0,0.95554683]
[1759853700916,0.002,121520.0,121510.0,1.60285683]
[1759853701127,0.002,121520.0,121510.0,1.37516683]
[1759853701336,0.002,121520.0,121510.0,1.14965683]
[1759853701541,0.002,121520.0,121510.0,0.42035683]
[1759853701750,0.002,121520.0,121510.0,1.16337683]
[1759853701966,0.23106196,121520.0,121510.0,0.29094683]
[1759853702192,0.27665502,121520.0,121510.0,0.43121927]
[1759853702422,0.27665502,121520.0,121510.0,0.66817927]
[1759853702423,0.38682502,121520.0,121510.0,0.66817927]
[1759853702644,0.38682502,121520.0,121510.0,0.00357927]
[1759853702850,0.38682502,121520.0,121510.0,0.25893927]
[1759853703735,0.38482502,121520.0,121510.0,0.25793927]
[1759853703946,0.38782502,121520.0,121510.0,0.25893927]
[1759853704157,0.41210502,121520.0,121510.0,0.00357927]
[1759853704372,0.41210502,121520.0,121510.0,0.32605927]
[1759853704810,0.36264502,121520.0,121510.0,0.32605927]
[1759853705164,0.33795502,121520.0,121510.0,0.32605927]
[1759853706392,0.36264502,121520.0,121510.0,0.32605927]
[1759853706883,0.33795502,121520.0,121510.0,0.32605927]
[1759853707662,0.36264502,121520.0,121510.0,0.32605927]
[1759853708279,0.36264502,121520.0,121510.0,0.00357927]
[1759853708491,0.36264502,121520.0,121510.0,0.32601927]
[1759853708918,0.27765502,121520.0,121510.0,0.32601927]
[1759853709129,0.36264502,121520.0,121510.0,0.32601927]
[1759853709345,0.38782502,121520.0,121510.0,0.32601927]
[1759853709760,0.36264502,121520.0,121510.0,0.32601927]
[1759853710184,0.19806306,121520.0,121510.0,0.49061477]
[1759853710392,0.003,121520.0,121510.0,0.61110477]
[1759853710796,0.16758196,121520.0,121510.0,0.58757477]
[1759853711001,0.23206196,121520.0,121510.0,0.53268477]
[1759853711416,0.06748,121520.0,121510.0,0.53268477]
[1759853711627,0.003,121520.0,121510.0,0.53268477]
[1759853711771,0.16758196,121520.0,121510.0,0.53268477]
[1759853711978,0.23206196,121520.0,121510.0,0.21024477]
[1759853712206,0.38792533,121520.0,121510.0,0.08909927]
[1759853712416,0.38792533,121520.0,121510.0,0.32601927]
[1759853712840,0.41220533,121520.0,121510.0,0.32601927]
[1759853713057,0.41220533,121520.0,121510.0,0.32597927]
[1759853714373,0.04385,121520.0,121510.0,0.53264477]
[1759853714579,0.16758196,121520.0,121510.0,0.53264477]
[1759853714804,0.23206196,121520.0,121510.0,0.49057477]
[1759853715018,0.29236196,121520.0,121510.0,0.49057477]
[1759853715203,0.23206196,121520.0,121510.0,0.16817477]
[1759853715448,0.29236196,121520.0,121510.0,0.49057477]
[1759853715663,0.04385,121520.0,121510.0,0.21024477]
[1759853715882,0.20843196,121520.0,121510.0,0.53264477]
[1759853716537,0.23206196,121520.0,121510.0,0.53264477]
[1759853716776,0.003,121520.0,121510.0,0.53264477]
[1759853717010,0.06748,121520.0,121510.0,0.53264477]
[1759853717237,0.16758196,121520.0,121510.0,0.87476477]
[1759853717954,0.003,121520.0,121510.0,0.87476477]
[1759853718185,0.003,121520.0,121510.0,1.03630683]
[1759853720893,0.003,121520.0,121510.0,0.95788683]
[1759853721281,0.003,121520.0,121510.0,1.01277683]
[1759853722124,0.003,121520.0,121510.0,1.03630683]
[1759853722332,0.003,121520.0,121510.0,1.01277683]
[1759853722799,0.003,121520.0,121510.0,1.03630683]
[1759853723217,0.003,121520.0,121510.0,1.05975683]
[1759853723423,0.003,121520.0,121510.0,1.13975363]
[1759853723721,0.003,121520.0,121510.0,2.21784463]
[1759853723950,0.003,121520.0,121510.0,2.16780663]
[1759853724101,0.003,121520.0,121510.0,2.09298063]
[1759853724725,0.003,121520.0,121510.0,2.06780663]
[1759853724922,0.003,121520.0,121510.0,2.00982063]
[1759853725122,0.003,121520.0,121510.0,1.65858963]
[1759853725730,0.003,121520.0,121510.0,1.07300056]
[1759853726662,0.003,121520.0,121510.0,1.09653056]
[1759853726896,0.003,121520.0,121510.0,1.20727056]
[1759853727308,0.00069659,121520.0,121510.0,1.20727056]
[1759853729612,0.00069659,121520.0,121510.0,1.23042056]
[1759853729827,0.00069659,121520.0,121510.0,1.31041736]
[1759853730315,0.00069659,121520.0,121510.0,1.65566736]
[1759853730521,0.00017135,121520.0,121510.0,1.68035628]
[1759853731154,0.1592565,121560.0,121550.0,0.16454134]
[1759853731358,0.1592565,121560.0,121550.0,0.48682134]
[1759853731570,0.1592565,121560.0,121550.0,0.32228]
[1759853731786,0.2226465,121560.0,121550.0,0.36123]
[1759853732227,0.2226465,121560.0,121550.0,0.52577134]
[1759853732433,0.2226465,121560.0,121550.0,0.52589553]
[1759853732640,0.2226465,121560.0,121550.0,0.52689553]
[1759853733057,0.1592565,121560.0,121550.0,0.52689553]
[1759853733235,0.00385906,121560.0,121550.0,0.52789553]
[1759853733487,0.00385906,121560.0,121550.0,0.65239673]
[1759853733672,0.00385906,121560.0,121550.0,0.66378759]
[1759853733802,0.00385906,121560.0,121550.0,0.68814759]
[1759853734750,0.00385906,121560.0,121550.0,0.61101759]
[1759853734751,0.16838686,121560.0,121550.0,0.61101759]
[1759853735186,0.28942686,121560.0,121550.0,0.57206759]
[1759853735431,0.31378686,121560.0,121550.0,0.23884419]
[1759853735654,0.31378686,121560.0,121550.0,0.32436419]
[1759853735864,0.36161702,121560.0,121550.0,0.32436419]
[1759853736494,0.31378686,121560.0,121550.0,0.32436419]
[1759853737565,0.31378686,121560.0,121550.0,0.00212419]
[1759853737771,0.33879686,121560.0,121550.0,0.32436419]
[1759853737983,0.33879686,121560.0,121550.0,0.32432419]
[1759853738452,0.31378686,121560.0,121550.0,0.32432419]
[1759853739731,0.20766686,121560.0,121550.0,0.52806553]
[1759853739977,0.00385906,121560.0,121550.0,0.76661439]
[1759853740162,0.00385906,121560.0,121550.0,0.68661759]
[1759853740376,0.16838686,121560.0,121550.0,0.61118759]
[1759853740583,0.20706686,121560.0,121550.0,0.61118759]
[1759853740807,0.23037686,121560.0,121550.0,0.36352419]
[1759853741043,0.31056686,121560.0,121550.0,0.32428419]
[1759853741254,0.33453504,121560.0,121550.0,0.52802553]
[1759853741420,0.23037686,121560.0,121550.0,0.48882553]
[1759853741631,0.28702686,121560.0,121550.0,0.32428419]
[1759853741826,0.31056686,121560.0,121550.0,0.32428419]
[1759853742029,0.23037686,121560.0,121550.0,0.52802553]
[1759853742399,0.00385906,121560.0,121550.0,0.71463439]
[1759853742601,0.00385906,121560.0,121550.0,0.76657439]
[1759853743018,0.00385906,121560.0,121550.0,0.78942439]
[1759853743434,0.00385906,121560.0,121550.0,1.83857214]
[1759853743872,0.00385906,121560.0,121550.0,1.86872404]
[1759853744079,0.06536749,121610.0,121550.0,1.86872404]
[1759853744294,0.22982789,121610.0,121600.0,0.16447368]
[1759853744561,0.26850789,121610.0,121600.0,0.44444206]
[1759853744787,0.29181789,121610.0,121600.0,0.44444206]
[1759853745009,0.2264504,121610.0,121600.0,0.44444206]
[1759853745484,0.2264504,121610.0,121600.0,0.60891574]
[1759853745699,0.16444663,121620.0,121610.0,0.16446015]
[1759853745907,0.16459741,121620.0,121610.0,0.24758221]
[1759853746130,0.00015078,121620.0,121610.0,0.34342135]
[1759853746338,0.00015078,121620.0,121610.0,0.44690815]
[1759853746546,0.00015078,121620.0,121610.0,0.36691135]
[1759853747753,0.00015078,121620.0,121610.0,0.29448135]
[1759853747955,0.00115078,121620.0,121610.0,0.37091135]
[1759853748132,0.16559741,121620.0,121610.0,0.34742135]
[1759853748553,0.16559741,121620.0,121610.0,0.37091135]
[1759853748905,0.16559741,121620.0,121610.0,0.34742135]
[1759853749740,0.20427741,121620.0,121610.0,0.29548135]
[1759853749950,0.16559741,121620.0,121610.0,0.29548135]
[1759853750731,0.20427741,121620.0,121610.0,0.29548135]
[1759853750947,0.28423741,121620.0,121610.0,0.92024135]
[1759853751081,0.20427741,121620.0,121610.0,0.95944135]
[1759853751602,0.22758741,121620.0,121610.0,0.7949812]
[1759853752563,0.22758741,121620.0,121610.0,0.95944135]
[1759853753171,0.16559741,121620.0,121610.0,0.95944135]
[1759853753375,0.16559741,121620.0,121610.0,1.03943815]
[1759853753719,0.20427741,121620.0,121610.0,1.03943815]
[1759853754092,0.16559741,121620.0,121610.0,1.03943815]
[1759853754232,0.16559741,121620.0,121610.0,0.7949812]
[1759853754469,0.22758741,121620.0,121610.0,0.7949812]
[1759853754987,0.22758741,121620.0,121610.0,0.95944135]
[1759853755188,0.16559741,121620.0,121610.0,0.95944135]
[1759853755547,0.16867705,121620.0,121610.0,0.95944135]
[1759853755885,0.00423042,121620.0,121610.0,0.97046356]
[1759853756247,0.00423042,121620.0,121610.0,1.04589356]
[1759853756445,0.16867705,121620.0,121610.0,1.04589356]
[1759853756662,0.16867705,121620.0,121610.0,1.02240356]
[1759853757078,0.16867705,121620.0,121610.0,0.97046356]
[1759853757807,0.23066705,121620.0,121610.0,0.7557812]
[1759853758018,0.28731705,121620.0,121610.0,0.7557812]
[1759853758425,0.31085705,121620.0,121610.0,0.7557812]
[1759853758632,0.23066705,121620.0,121610.0,0.95944135]
[1759853758893,0.23066705,121620.0,121610.0,0.7949812]
[1759853759118,0.23066705,121620.0,121610.0,0.7557812]
[1759853759537,0.23066705,121620.0,121610.0,0.95944135]
[1759853759749,0.22922705,121620.0,121610.0,0.835778]
[1759853759950,0.22922705,121620.0,121610.0,0.7557812]
[1759853761178,0.22922705,121620.0,121610.0,0.95973135]
[1759853761411,0.22922705,121620.0,121610.0,0.67265914]
[1759853761610,0.33912705,121620.0,121610.0,0.67265914]
[1759853762696,0.36243705,121620.0,121610.0,0.66796]
[1759853762900,0.39181436,121620.0,121610.0,0.66796]
[1759853763137,0.36760436,121620.0,121610.0,0.66796]
[1759853763522,0.31491705,121620.0,121610.0,0.66796]
[1759853763877,0.33912705,121620.0,121610.0,0.66796]
[1759853764243,0.36243705,121620.0,121610.0,0.66796]
[1759853765536,0.44555911,121620.0,121610.0,0.326]
[1759853765747,0.52555591,121620.0,121610.0,0.326]
[1759853765959,1.55697619,121620.0,121610.0,0.24052]
[1759853766802,1.55697619,121620.0,121610.0,0.004]
[1759853767015,1.79337619,121620.0,121610.0,0.004]